bitfinex/quotes_ETHUSD_20250318
["timestamp","ask_amount","ask_price","bid_price","bid_amount"]
[1742289888758,0.14150467,1909.5,1909.3,5.23751]
[1742289888957,0.14150467,1909.5,1909.3,5.23741]
[1742289890559,0.14150467,1909.5,1909.2,11.2684]
[1742289890762,5.37847467,1909.5,1909.3,4.912]
[1742289891065,0.14150467,1909.5,1909.3,4.912]
[1742289891394,0.14150467,1909.5,1909.3,10.14946]
[1742289892502,5.37849467,1909.5,1909.3,4.912]
[1742289893013,5.37849467,1909.5,1909.3,10.1495]
[1742289893014,0.14150467,1909.5,1909.3,10.1495]
[1742289895196,0.14150467,1909.5,1909.3,4.912]
[1742289895361,5.23776,1909.3,1908.9,5.27284854]
[1742289895566,9.88215102,1909.2,1908.9,5.27284854]
[1742289895940,10.02370734,1909.2,1908.9,5.27284854]
[1742289896393,4.64427102,1909.0,1908.9,4.94731854]
[1742289896897,4.78582734,1909.0,1908.9,4.94731854]
[1742289898170,10.02416734,1909.0,1908.9,0.03431854]
[1742289900194,4.78582734,1909.0,1908.9,0.03431854]
[1742289902398,0.14155632,1909.0,1908.9,0.03431854]
[1742289902598,0.14155632,1909.0,1908.9,5.27292854]
[1742289903091,0.09021822,1909.0,1908.9,10.18692854]
[1742289903293,0.13937836,1909.0,1908.9,4.94831854]
[1742289903497,4.78364938,1909.0,1908.9,4.94831854]
[1742289904297,10.02198938,1909.0,1908.9,4.94831854]
[1742289910189,4.78364938,1909.0,1908.9,4.94831854]
[1742289915115,4.78364938,1909.0,1908.9,10.18692854]
[1742289915280,4.78364938,1909.0,1908.9,4.94831854]
[1742289917416,0.13937836,1909.0,1908.9,5.77731854]
[1742289918121,0.13937836,1909.0,1908.9,0.86331854]
[1742289918443,10.02198938,1909.0,1908.9,0.03431854]
[1742289921514,10.01889809,1909.0,1908.9,0.03431854]
[1742289924321,0.13628707,1909.0,1908.9,0.03431854]
[1742289925098,2.92566174,1909.0,1908.9,0.03431854]
[1742289930334,8.16400174,1909.0,1908.9,0.03431854]
[1742289931222,2.92566174,1909.0,1908.9,0.03431854]
[1742289940241,8.16400174,1909.0,1908.9,0.03431854]
[1742289940978,11.94830174,1909.0,1908.9,0.03431854]
[1742289941128,12.58216959,1909.0,1908.9,0.03431854]
[1742289941633,11.94830174,1909.0,1908.9,0.03431854]
[1742289941834,11.16400174,1909.0,1908.9,0.03431854]
[1742289945853,5.92566174,1909.0,1908.9,0.03431854]
[1742289946050,2.92566174,1909.0,1908.9,5.27292854]
[1742289946357,2.92566174,1909.0,1908.9,6.32409839]
[1742289946552,2.92566174,1909.0,1908.9,1.08548839]
[1742289946714,0.13628707,1909.0,1908.9,7.16198164]
[1742289947059,2.78937467,1909.2,1909.0,5.2383]
[1742289947253,11.30198,1909.4,1909.0,6.47308984]
[1742289947254,2.78937467,1909.1,1909.0,6.47308984]
[1742289947413,2.78937467,1909.1,1909.0,11.36808984]
[1742289947617,2.78937467,1909.1,1909.0,6.12978984]
[1742289948045,2.78937467,1909.1,1909.0,4.895]
[1742289948554,5.23834,1909.0,1908.9,0.03431854]
[1742289948755,8.02771467,1909.0,1908.9,0.03431854]
[1742289951964,5.2376,1909.3,1908.9,0.03431854]
[1742289952117,2.78937467,1909.0,1908.9,6.04523854]
[1742289952452,2.78937467,1909.0,1908.9,2.42462539]
[1742289952611,2.78937467,1909.0,1908.9,7.66323539]
[1742289952816,2.92060701,1909.0,1908.9,7.66323539]
[1742289953644,0.13123234,1909.0,1908.9,7.66323539]
[1742289953954,2.92060701,1909.0,1908.9,7.66323539]
[1742289954757,0.13123234,1909.0,1908.9,7.66323539]
[1742289955753,2.78937467,1909.2,1909.0,5.2382]
[1742289955955,2.78937467,1909.1,1909.0,6.52833854]
[1742289956380,2.78937467,1909.1,1909.0,1.29013854]
[1742289957769,2.78937467,1909.2,1909.0,11.76670854]
[1742289958084,2.78937467,1909.2,1909.0,6.52836854]
[1742289958284,2.78937467,1909.1,1909.0,6.52836854]
[1742289959373,2.78937467,1909.2,1909.0,6.52836854]
[1742289960048,2.78937467,1909.2,1909.1,5.23807]
[1742289960683,2.78937467,1909.2,1909.0,5.23823]
[1742289960885,2.78937467,1909.1,1909.0,5.23823]
[1742289963395,2.78937467,1909.2,1909.0,5.23823]
[1742289963604,9.05527,1909.4,1909.3,5.23752]
[1742289963605,3.0,1909.4,1909.3,5.23752]
[1742289963901,2.78937467,1909.5,1909.3,5.23741]
[1742289964079,2.78937467,1909.5,1909.3,10.47482]
[1742289964278,2.78937467,1909.5,1909.3,5.23741]
[1742289964478,2.78937467,1909.6,1909.4,5.23724]
[1742289964681,5.23604,1909.9,1909.5,5.23684]
[1742289964885,2.78937467,1909.6,1909.5,5.23684]
[1742289965401,4.64588034,1909.7,1909.5,5.23684]
[1742289965605,7.64588034,1909.8,1909.6,5.760374]
[1742289965769,4.64588034,1909.7,1909.4,16.15171]
[1742289966192,3.0,1909.8,1909.5,5.23678]
[1742289966394,9.88192034,1909.9,1909.6,5.23661]
[1742289966570,4.64588034,1909.9,1909.6,10.47311]
[1742289966868,4.64588034,1909.9,1909.6,10.47303]
[1742289967068,9.88176034,1909.9,1909.7,1.047303]
[1742289967316,9.88176034,1909.9,1909.6,5.2365]
[1742289967505,4.64588034,1909.9,1909.7,5.23626]
[1742289967711,4.64588034,1909.9,1909.8,5.23615]
[1742289967916,10.65716034,1910.1,1909.8,5.23615]
[1742289968087,5.42178034,1910.1,1909.8,12.086891]
[1742289968415,4.64588034,1910.1,1909.9,5.23585]
[1742289968611,4.64588034,1910.0,1909.8,1.614761]
[1742289968913,9.88161034,1910.0,1909.8,1.614761]
[1742289969075,4.64588034,1910.0,1909.8,1.614761]
[1742289970016,4.64588034,1910.0,1909.8,6.850891]
[1742289970510,4.64588034,1909.9,1909.8,1.614761]
[1742289970722,4.64588034,1909.9,1909.7,4.899]
[1742289971656,4.64588034,1909.9,1909.7,10.13542]
[1742289972156,9.88176034,1909.9,1909.7,4.899]
[1742289972354,4.64588034,1909.9,1909.7,4.899]
[1742289972516,4.64588034,1909.9,1909.7,6.516685]
[1742289973255,4.64588034,1909.9,1909.7,4.899]
[1742289973549,9.88188034,1909.9,1909.7,4.899]
[1742289973757,15.11793034,1909.9,1909.7,4.899]
[1742289974061,15.11835034,1909.8,1909.6,4.895]
[1742289974230,15.11838034,1909.8,1909.6,4.895]
[1742289974429,9.88204034,1909.8,1909.6,4.895]
[1742289975241,15.11834034,1909.8,1909.6,4.895]
[1742289975864,9.88204034,1909.8,1909.6,4.895]
[1742289976464,4.64588034,1909.7,1909.6,4.895]
[1742289977569,5.23697,1909.5,1909.4,6.1486987]
[1742289977732,9.88285034,1909.5,1909.2,11.97631985]
[1742289977933,9.88285034,1909.5,1909.2,9.16663699]
[1742289978179,15.11999034,1909.5,1909.2,9.16663699]
[1742289978479,9.88285034,1909.5,1909.2,4.27063699]
[1742289978630,9.88285034,1909.5,1909.1,33.49654]
[1742289978826,15.11998034,1909.5,1909.1,33.49654]
[1742289979089,9.88285034,1909.5,1909.1,33.49654]
[1742289979748,9.88285034,1909.5,1909.1,28.25849]
[1742289979932,9.88317034,1909.4,1909.1,31.608168]
[1742289980480,10.63597034,1909.4,1909.1,31.608168]
[1742289981238,5.99009,1909.4,1909.1,19.524078]
[1742289981438,15.11993034,1909.5,1909.1,19.524078]
[1742289981635,10.63480034,1909.6,1909.2,5.23774]
[1742289981873,9.88260034,1909.6,1909.2,6.6662518]
[1742289982136,9.88260034,1909.6,1909.3,5.23747]
[1742289982578,15.11948034,1909.6,1909.2,6.6662518]
[1742289982869,0.13255839,1909.5,1909.2,11.9039218]
[1742289983069,0.13255839,1909.5,1909.3,5.23749]
[1742289983446,0.13255839,1909.5,1909.2,6.6662518]
[1742289983766,5.36956839,1909.5,1909.2,6.6662518]
[1742289984066,5.36956839,1909.5,1909.2,11.9039518]
[1742289984067,0.13255839,1909.5,1909.2,11.9039518]
[1742289984365,0.13255839,1909.5,1909.3,5.23752]
[1742289984936,0.13255839,1909.5,1909.2,6.6662518]
[1742289985136,0.13255839,1909.5,1909.2,11.9039118]
[1742289985338,0.13255839,1909.5,1909.3,6.42788118]
[1742289985537,0.13255839,1909.5,1909.3,6.42780118]
[1742289985963,0.13255839,1909.5,1909.3,1.19039118]
[1742289986179,0.13255839,1909.5,1909.2,5.23757]
[1742289986532,0.13255839,1909.5,1909.4,0.7787]
[1742289986738,4.64588034,1909.7,1909.4,10.92284]
[1742289986939,0.13240342,1909.6,1909.5,5.23687]
[1742289987146,4.64588034,1909.7,1909.5,5.23687]
[1742289987362,4.64588034,1909.7,1909.4,10.92284]
[1742289987363,0.13240342,1909.6,1909.4,10.92284]
[1742289987672,9.88242034,1909.7,1909.4,12.12198148]
[1742289987869,0.13240342,1909.5,1909.4,12.12198148]
[1742289988374,9.88242034,1909.7,1909.4,12.12198148]
[1742289988674,0.13240342,1909.6,1909.4,12.12193148]
[1742289988971,5.23592,1909.9,1909.6,5.23661]
[1742289989149,0.13240342,1909.8,1909.7,5.23636]
[1742289989477,11.24373,1910.0,1909.6,5.23658]
[1742289989639,0.13240342,1909.8,1909.6,5.23658]
[1742289989971,4.64588034,1909.9,1909.7,0.523658]
[1742289990483,4.64588034,1909.9,1909.7,5.760068]
[1742289991776,10.65383034,1910.0,1909.7,6.512068]
[1742289992273,9.88153034,1910.0,1909.7,6.512068]
[1742289992773,15.11732034,1910.0,1909.7,0.523658]
[1742289993274,4.64588034,1909.8,1909.7,4.907]
[1742289996336,9.88154034,1910.0,1909.7,4.907]
[1742289996742,9.88154034,1910.0,1909.7,10.14332]
[1742289996987,4.64588034,1910.0,1909.8,5.23603]
[1742289997143,12.88096034,1910.2,1909.9,0.7595]
[1742289997353,0.7699,1910.3,1909.9,1.359053]
[1742289997554,4.64588034,1910.4,1910.1,5.2352]
[1742289997803,0.12327487,1910.3,1910.1,5.2352]
[1742289998154,4.76915521,1910.3,1910.0,10.1405]
[1742289999496,4.76915521,1910.3,1910.1,5.2352]
[1742289999681,0.12327487,1910.3,1910.2,5.23505]
[1742290000066,0.12327487,1910.3,1910.1,5.2352]
[1742290000413,0.12327487,1910.3,1910.2,0.52352]
[1742290001303,4.76915521,1910.3,1910.2,0.52352]
[1742290002580,0.12327487,1910.3,1910.2,5.75857]
[1742290002790,5.41678034,1910.5,1910.2,5.75857]
[1742290003114,5.41678034,1910.5,1910.2,0.52352]
[1742290003115,4.76915521,1910.4,1910.2,0.52352]
[1742290003888,0.12327487,1910.4,1910.3,5.23477]
[1742290004131,0.12327487,1910.4,1910.3,5.892539]
[1742290005084,0.12327487,1910.4,1910.3,0.657769]
[1742290005289,4.76915521,1910.4,1910.3,0.657769]
[1742290006278,10.83266521,1910.4,1910.1,10.13227]
[1742290007218,16.06735521,1910.4,1910.1,4.897]
[1742290007714,10.83266521,1910.4,1910.1,10.13231]
[1742290008136,16.06735521,1910.4,1910.1,4.897]
[1742290008339,5.23478,1910.3,1910.1,4.897]
[1742290008483,5.23478,1910.3,1910.1,5.989065]
[1742290008690,0.12418089,1910.2,1910.1,5.989065]
[1742290009138,10.70939034,1910.4,1910.1,5.989065]
[1742290009413,15.94406034,1910.4,1910.1,5.989065]
[1742290009614,5.35897089,1910.3,1910.1,5.989065]
[1742290009982,0.12418089,1910.3,1910.1,5.989065]
[1742290011119,5.35896089,1910.3,1910.1,5.989065]
[1742290013732,5.35896089,1910.3,1910.1,4.897]
[1742290013897,4.64588034,1910.2,1909.9,5.23584]
[1742290014224,4.64588034,1910.0,1909.9,4.892]
[1742290014686,4.77006123,1910.0,1909.9,4.892]
[1742290015523,10.79676123,1910.0,1909.8,4.896]
[1742290015722,9.88178034,1909.9,1909.8,4.896]
[1742290016025,10.00595259,1909.9,1909.6,6.04605]
[1742290016224,10.00595259,1909.9,1909.6,13.92237032]
[1742290016689,0.12417225,1909.9,1909.7,5.23625]
[1742290016889,0.12417225,1909.9,1909.8,5.23615]
[1742290017629,0.12416362,1909.9,1909.8,5.23615]
[1742290017924,0.12416362,1909.9,1909.8,1.04724]
[1742290018096,10.47086,1910.1,1909.8,1.04724]
[1742290018284,0.12397382,1909.9,1909.7,10.47252]
[1742290018490,5.23538,1910.1,1909.8,5.23615]
[1742290018685,13.69258034,1910.2,1909.8,6.06639]
[1742290018905,0.12397382,1910.0,1909.8,6.06639]
[1742290019234,0.12397382,1909.9,1909.8,6.06639]
[1742290019389,0.12397382,1909.9,1909.8,7.196668]
[1742290019588,5.23535,1910.1,1909.8,7.196668]
[1742290019903,0.12404284,1910.0,1909.8,7.196668]
[1742290020834,4.76992318,1910.0,1909.7,5.23629]
[1742290021127,4.76992318,1910.0,1909.6,6.03427]
[1742290021128,4.64588034,1909.8,1909.6,6.03427]
[1742290021585,0.12405147,1909.7,1909.6,6.03427]
[1742290022839,9.88148034,1910.0,1909.7,5.2364]
[1742290023144,8.23509,1910.2,1909.8,5.23613]
[1742290023293,4.64588034,1910.2,1909.9,6.06724]
[1742290024087,9.88096034,1910.2,1909.9,6.06724]
[1742290024332,4.64588034,1910.2,1909.9,6.06724]
[1742290024620,4.64588034,1910.2,1909.9,12.923607]
[1742290024928,4.64588034,1910.2,1910.0,5.23556]
[1742290025125,9.88118034,1910.2,1909.9,1.620637]
[1742290025310,9.88118034,1910.2,1909.8,10.13907]
[1742290025514,9.88118034,1910.2,1909.8,17.09981519]
[1742290026929,9.88118034,1910.2,1909.8,11.86374519]
[1742290027225,9.88118034,1910.2,1909.8,17.09978519]
[1742290027833,0.12417225,1910.1,1909.8,17.09978519]
[1742290028927,0.12417225,1910.1,1909.9,5.23584]
[1742290029332,0.12417225,1910.1,1909.9,6.94567852]
[1742290029537,4.64588034,1910.2,1909.9,6.94567852]
[1742290029735,0.12417225,1910.0,1909.9,6.94567852]
[1742290029938,4.64588034,1910.2,1910.0,6.04878]
[1742290030104,8.47338034,1910.4,1910.1,5.23523]
[1742290030437,8.47338034,1910.4,1910.1,10.47044]
[1742290030740,13.70791034,1910.4,1910.1,5.23521]
[1742290031269,4.64588034,1910.2,1910.0,5.23559]
[1742290031474,4.64588034,1910.2,1909.9,12.18146852]
[1742290032166,4.64588034,1910.2,1910.0,5.23556]
[1742290032772,4.64588034,1910.2,1910.0,5.23544]
[1742290033776,10.70790034,1910.4,1910.0,11.26563]
[1742290034276,5.47338034,1910.4,1910.1,5.2352]
[1742290034764,10.70796034,1910.4,1910.1,5.2352]
[1742290035639,10.70796034,1910.4,1909.9,5.23586]
[1742290035640,4.64588034,1910.2,1909.9,5.23586]
[1742290035845,9.88155034,1910.0,1909.7,5.23629]
[1742290036044,4.64588034,1910.0,1909.7,10.47256]
[1742290036887,4.64588034,1910.0,1909.8,5.23611]
[1742290037043,4.64588034,1910.0,1909.7,5.23627]
[1742290037376,4.64588034,1909.8,1909.7,4.926]
[1742290038579,4.64588034,1909.8,1909.5,11.3856587]
[1742290038803,4.64588034,1909.8,1909.6,4.926]
[1742290039017,4.64588034,1909.8,1909.6,10.16268]
[1742290040692,4.64588034,1910.0,1909.7,0.7695]
[1742290040999,4.64588034,1910.0,1909.8,5.23592]
[1742290041170,3.0,1910.1,1909.8,5.23592]
[1742290041373,3.0,1910.1,1909.9,10.47144]
[1742290041558,3.0,1910.1,1909.9,5.23572]
[1742290042896,0.12382715,1910.0,1909.9,5.23572]
[1742290044975,12.88069034,1910.3,1909.9,5.23572]
[1742290045179,0.12387029,1910.0,1909.9,5.23572]
[1742290045496,5.23508,1910.2,1909.9,6.3429492]
[1742290045698,0.12387029,1910.0,1909.9,6.3429492]
[1742290045902,5.23508,1910.2,1909.9,6.3429492]
[1742290046203,0.12387029,1910.0,1909.9,5.23586]
[1742290046424,4.64588034,1910.1,1909.8,5.23603]
[1742290046726,0.12392205,1910.0,1909.9,5.23587]
[1742290047532,0.12392205,1910.0,1909.9,10.15687]
[1742290047728,0.12392205,1910.0,1909.9,4.921]
[1742290050400,10.77130239,1909.9,1909.6,5.23669]
[1742290050631,0.7753,1909.6,1909.4,4.919]
[1742290050837,5.42118034,1909.6,1909.3,5.23735]
[1742290051138,4.64588034,1909.4,1909.2,5.23762]
[1742290051902,4.64588034,1909.5,1909.2,5.23762]
[1742290052096,9.88299034,1909.5,1909.1,21.5446387]
[1742290052329,9.88299034,1909.5,1909.1,24.95594363]
[1742290052538,0.12379266,1909.4,1909.2,5.23778]
[1742290053533,4.769673,1909.4,1909.1,6.1486987]
[1742290053859,10.007033,1909.4,1909.1,11.0776987]
[1742290054359,10.007033,1909.4,1909.1,16.3157487]
[1742290054663,4.769673,1909.4,1909.1,15.40497]
[1742290054829,4.769673,1909.4,1909.2,5.23776]
[1742290055036,0.12379266,1909.4,1909.3,5.23752]
[1742290056270,10.65791034,1909.6,1909.3,5.23752]
[1742290056475,4.64588034,1909.5,1909.3,5.23752]
[1742290056667,6.01203,1909.6,1909.3,5.23752]
[1742290056961,10.65791034,1909.6,1909.3,5.23752]
[1742290057148,0.12379266,1909.5,1909.3,5.23752]
[1742290057527,4.769673,1909.5,1909.3,5.23752]
[1742290059074,0.1235424,1909.4,1909.3,5.23752]
[1742290059440,0.1235424,1909.4,1909.3,7.043148]
[1742290059653,4.64588034,1909.6,1909.3,7.043038]
[1742290059860,0.1235424,1909.5,1909.3,5.99551]
[1742290060871,0.1235424,1909.5,1909.3,5.99546]
[1742290061032,0.1235424,1909.5,1909.4,5.23724]
[1742290061369,11.25001,1909.8,1909.5,10.47375]
[1742290061370,5.42338034,1909.8,1909.5,10.47375]
[1742290061576,0.1235424,1909.5,1909.4,6.04684]
[1742290061754,10.69162034,1910.1,1909.8,6.04574]
[1742290061958,10.69162034,1910.1,1909.8,10.97374]
[1742290062274,0.11988584,1910.0,1909.8,10.97374]
[1742290063472,4.76576618,1910.0,1909.8,4.928]
[1742290063637,4.64588034,1909.9,1909.8,4.928]
[1742290063834,4.76511289,1909.9,1909.8,4.928]
[1742290064040,10.77458289,1909.9,1909.5,10.16383]
[1742290064290,4.64588034,1909.6,1909.5,4.927]
[1742290064456,5.39678034,1909.6,1909.5,4.927]
[1742290064658,10.63347034,1909.6,1909.5,4.927]
[1742290064835,10.75270289,1909.6,1909.5,4.927]
[1742290065883,5.51601289,1909.6,1909.5,4.927]
[1742290066092,0.87013255,1909.6,1909.5,4.927]
[1742290070414,5.51601289,1909.6,1909.5,4.927]
[1742290070913,10.75270289,1909.6,1909.5,4.927]
[1742290071276,5.51601289,1909.6,1909.5,4.927]
[1742290073610,0.11923255,1909.6,1909.5,10.16397]
[1742290073906,4.64588034,1909.8,1909.5,17.745159]
[1742290074079,4.64588034,1909.8,1909.6,5.23666]
[1742290074576,4.64588034,1909.7,1909.6,5.23666]
[1742290075296,4.64588034,1909.7,1909.5,10.96807]
[1742290075497,4.64588034,1909.6,1909.5,4.927]
[1742290078444,4.64588034,1909.6,1909.4,5.23712]
[1742290078445,9.88257034,1909.6,1909.4,4.912]
[1742290078739,5.2371,1909.5,1909.3,4.913]
[1742290078931,4.64588034,1909.4,1909.3,4.913]
[1742290080305,9.88312034,1909.4,1909.3,4.913]
[1742290081396,15.12052034,1909.4,1909.0,6.28284634]
[1742290081619,4.64588034,1909.2,1909.0,10.1531]
[1742290081817,4.64588034,1909.2,1909.0,17.01098885]
[1742290082128,4.64588034,1909.3,1909.0,11.77277885]
[1742290082287,4.64588034,1909.3,1909.0,17.01098885]
[1742290083129,4.64588034,1909.3,1909.1,0.39284753]
[1742290083439,4.64588034,1909.3,1909.1,5.63085753]
[1742290083590,5.45928034,1909.5,1909.4,5.23724]
[1742290083799,4.64588034,1909.6,1909.3,5.23746]
[1742290084023,4.64588034,1909.5,1909.3,5.23746]
[1742290084767,4.64588034,1909.5,1909.3,5.23742]
[1742290084922,4.64588034,1909.5,1909.4,5.23724]
[1742290085123,4.64588034,1909.6,1909.4,5.23724]
[1742290085522,4.64588034,1909.6,1909.3,5.23742]
[1742290085762,4.64588034,1909.5,1909.3,5.23742]
[1742290086127,4.64588034,1909.4,1909.3,5.23742]
[1742290086469,4.64588034,1909.4,1909.2,11.30369]
[1742290086765,4.64588034,1909.4,1909.3,5.23752]
[1742290087980,4.76489659,1909.4,1909.3,5.23752]
[1742290089276,0.11901625,1909.4,1909.3,5.23752]
[1742290089472,4.64588034,1909.5,1909.3,10.47504]
[1742290089661,0.11049346,1909.4,1909.3,10.47504]
[1742290089977,0.11049346,1909.4,1909.3,6.49435518]
[1742290091086,0.11049346,1909.4,1909.3,5.23752]
[1742290093250,0.11049346,1909.4,1909.2,5.23773]
[1742290095491,0.11049346,1909.4,1909.3,5.23752]
[1742290097584,0.11049346,1909.4,1909.2,5.23771]
[1742290098374,0.11049346,1909.4,1909.2,10.47539]
[1742290098777,0.11049346,1909.4,1909.2,12.097749]
[1742290099488,0.11049346,1909.4,1909.3,5.23752]
[1742290100071,4.64588034,1909.8,1909.5,5.23686]
[1742290100277,0.11047616,1909.7,1909.5,5.23686]
[1742290102495,0.11047616,1909.7,1909.4,15.38832]
[1742290103482,0.11047616,1909.5,1909.4,10.15114]
[1742290103678,0.11047616,1909.5,1909.4,4.914]
[1742290103890,4.7563565,1909.5,1909.4,4.914]
[1742290105174,6.06013,1909.4,1909.1,10.1519]
[1742290105376,10.70601034,1909.4,1909.1,10.1519]
[1742290105571,0.10653058,1909.3,1909.1,10.1519]
[1742290105960,4.64588034,1909.3,1909.1,10.1519]
[1742290106296,0.10653058,1909.2,1909.1,10.1509]
[1742290107293,0.10653058,1909.2,1909.1,10.93764215]
[1742290107489,10.70601034,1909.4,1909.1,10.93764215]
[1742290107698,0.10653058,1909.3,1909.1,18.89972274]
[1742290107871,5.46868034,1909.4,1909.1,18.89972274]
[1742290108070,0.10645269,1909.3,1909.1,18.89972274]
[1742290108299,5.46868034,1909.4,1909.1,19.9224921]
[1742290108500,0.10645269,1909.3,1909.1,12.45212601]
[1742290108679,15.94335034,1909.4,1909.2,0.78674215]
[1742290108885,10.70594034,1909.4,1909.2,0.78674215]
[1742290109195,0.10645269,1909.3,1909.2,1.27845665]
[1742290109899,10.70594034,1909.4,1909.2,1.27845665]
[1742290110100,0.10645269,1909.3,1909.2,1.27845665]
[1742290110302,10.70594034,1909.4,1909.2,1.27845665]
[1742290110506,0.10645269,1909.3,1909.2,1.27845665]
[1742290110803,10.70594034,1909.4,1909.2,0.4917145]
[1742290111120,0.10645269,1909.3,1909.2,0.4917145]
[1742290111293,5.23755,1909.3,1909.1,4.913]
[1742290111601,0.10645269,1909.2,1909.0,5.23821]
[1742290111804,4.64588034,1909.1,1908.9,10.18180854]
[1742290111980,9.99020303,1909.2,1908.9,10.18180854]
[1742290112180,0.10630556,1909.0,1908.9,10.18180854]
[1742290112691,9.88375034,1909.2,1908.9,10.18180854]
[1742290113007,0.10630556,1909.1,1908.9,10.18180854]
[1742290113925,4.7521859,1909.1,1908.9,0.03431854]
[1742290114068,4.64588034,1909.0,1908.9,0.03431854]
[1742290114263,9.88422034,1909.0,1908.9,0.03431854]
[1742290114501,9.99041338,1909.0,1908.9,0.03431854]
[1742290115204,0.10619304,1909.0,1908.9,0.03431854]
[1742290115811,0.10619304,1909.0,1908.9,5.27292854]
[1742290116012,15.90870034,1909.3,1908.9,10.90485375]
[1742290116214,15.90870034,1909.3,1909.1,0.03431989]
[1742290116215,4.64588034,1909.2,1909.1,0.03431989]
[1742290116719,10.67103034,1909.3,1909.1,0.03431989]
[1742290117013,7.64588034,1909.5,1909.2,10.4753]
[1742290117808,0.10621035,1909.4,1909.3,5.23752]
[1742290118513,9.88260034,1909.6,1909.3,5.23752]
[1742290118701,0.10621035,1909.5,1909.3,5.23752]
[1742290118902,4.75209069,1909.5,1909.3,5.23752]
[1742290120012,4.75209069,1909.5,1909.3,10.47491]
[1742290120186,0.10621035,1909.5,1909.3,10.47491]
[1742290120538,0.10621035,1909.5,1909.3,5.23739]
[1742290120818,0.10621035,1909.5,1909.3,10.47477]
[1742290121182,0.10621035,1909.5,1909.3,5.23738]
[1742290121457,0.10621035,1909.5,1909.3,10.47475]
[1742290121915,0.10621035,1909.5,1909.4,5.23724]
[1742290122084,10.68124034,1909.7,1909.4,5.23724]
[1742290122283,0.10621035,1909.6,1909.4,5.23724]
[1742290122484,10.68124034,1909.7,1909.4,5.23724]
[1742290122815,0.10620171,1909.6,1909.4,5.23724]
[1742290123113,10.68124034,1909.7,1909.4,5.23724]
[1742290123318,0.10620171,1909.6,1909.4,5.23724]
[1742290123480,10.68124034,1909.7,1909.4,5.23724]
[1742290123812,9.98880205,1909.6,1909.2,6.02866]
[1742290124121,4.64588034,1909.5,1909.2,11.87257799]
[1742290124414,4.64588034,1909.4,1909.2,5.23762]
[1742290124618,4.75208205,1909.4,1909.2,5.23762]
[1742290125516,5.57028205,1909.4,1909.2,5.23762]
[1742290125842,5.57028205,1909.4,1909.1,15.41724989]
[1742290126919,5.57028205,1909.4,1909.2,5.23777]
[1742290127126,0.10620171,1909.4,1909.3,5.23752]
[1742290127622,5.34353171,1909.4,1909.2,1.01790899]
[1742290127827,4.75208205,1909.4,1909.1,10.17926989]
[1742290128022,0.7694,1909.3,1909.1,5.27226989]
[1742290128227,4.64588034,1909.2,1909.1,0.03431989]
[1742290128404,9.88367034,1909.2,1909.1,0.03431989]
[1742290128724,10.76157205,1909.2,1909.1,0.03431989]
[1742290129223,13.76157205,1909.2,1909.1,0.03431989]
[1742290138547,15.54659284,1909.2,1909.1,0.03431989]
[1742290140255,16.58386249,1909.2,1909.1,0.03431989]
[1742290140410,15.98270955,1909.2,1909.1,0.03431989]
[1742290141344,16.58386249,1909.2,1909.1,0.03431989]
[1742290142596,22.60386249,1909.2,1909.1,0.03431989]
[1742290143029,22.00270955,1909.2,1909.1,0.03431989]
[1742290146475,16.03512921,1909.2,1909.1,0.03431989]
[1742290146700,20.38047205,1909.2,1909.1,0.03431989]
[1742290148499,14.36047205,1909.2,1909.1,0.03431989]
[1742290149506,3.10620171,1909.2,1909.1,0.03431989]
[1742290150003,8.34399171,1909.2,1909.1,0.03431989]
[1742290150497,12.98987205,1909.2,1909.1,0.03431989]
[1742290152215,7.75208205,1909.2,1909.1,0.03431989]
[1742290152884,3.10620171,1909.2,1909.1,0.03431989]
[1742290154012,12.98987205,1909.2,1909.1,0.03431989]
[1742290161144,3.10620171,1909.2,1909.1,0.85211989]
[1742290161599,0.10620171,1909.2,1909.1,0.85211989]
[1742290161799,0.10620171,1909.2,1909.1,7.22304388]
[1742290161999,9.88262034,1909.6,1909.1,7.22282388]
[1742290162307,3.0,1909.5,1909.2,5.99815]
[1742290162610,9.88262034,1909.6,1909.3,5.23739]
[1742290162816,0.09811755,1909.4,1909.2,11.23583]
[1742290163015,4.64588034,1909.5,1909.3,1.123583]
[1742290163630,9.88286034,1909.5,1909.3,1.123583]
[1742290165043,4.64588034,1909.5,1909.3,6.361093]
[1742290165243,15.11958034,1909.6,1909.3,6.361093]
[1742290165408,15.11958034,1909.6,1909.3,1.123583]
[1742290165609,15.11949034,1909.6,1909.3,1.123583]
[1742290166747,15.11947034,1909.6,1909.3,1.123583]
[1742290166939,9.88262034,1909.6,1909.3,1.123583]
[1742290167158,15.11947034,1909.6,1909.3,1.123583]
[1742290167546,4.64588034,1909.5,1909.3,1.123583]
[1742290167871,9.88295034,1909.5,1909.3,1.123583]
[1742290168374,15.12014034,1909.5,1909.2,0.7606]
[1742290168559,15.12008034,1909.5,1909.2,0.7606]
[1742290168759,4.64588034,1909.4,1909.2,0.7606]
[1742290168963,4.64588034,1909.4,1909.2,5.99837]
[1742290170681,4.64588034,1909.5,1909.2,11.23605]
[1742290170982,5.23675,1909.6,1909.2,11.23605]
[1742290170983,9.88263034,1909.6,1909.3,1.123605]
[1742290171289,15.11949034,1909.6,1909.3,1.123605]
[1742290171837,5.23675,1909.6,1909.3,1.123605]
[1742290172059,5.23675,1909.6,1909.3,6.361035]
[1742290172933,5.23675,1909.6,1909.4,0.7633]
[1742290173172,13.27465886,1909.7,1909.4,1.4757335]
[1742290173343,10.4736,1909.6,1909.4,1.4757335]
[1742290173549,5.23697,1909.5,1909.4,0.7633]
[1742290174034,9.88257034,1909.6,1909.4,0.7633]
[1742290174434,15.11945034,1909.6,1909.4,0.7633]
[1742290174636,9.88257034,1909.6,1909.4,0.7633]
[1742290175077,4.64588034,1909.6,1909.4,0.7633]
[1742290175279,4.64588034,1909.6,1909.4,1.887106]
[1742290176534,9.88258034,1909.6,1909.4,1.887106]
[1742290177269,9.88258034,1909.6,1909.4,1.123806]
[1742290177270,15.11943034,1909.6,1909.4,1.123806]
[1742290177571,5.23697,1909.5,1909.2,6.05816]
[1742290177770,0.09857743,1909.4,1909.2,6.05816]
[1742290179494,0.09857743,1909.4,1909.2,11.29582]
[1742290179669,0.09857743,1909.4,1909.3,5.23752]
[1742290179871,9.88258034,1909.6,1909.3,6.367078]
[1742290180070,0.09857743,1909.4,1909.3,6.367078]
[1742290180272,9.88258034,1909.6,1909.3,6.367078]